bitfinex/quotes_SOLUSD_20241220
["timestamp","ask_amount","ask_price","bid_price","bid_amount"]
[1734666099952,15.47409627,196.81,196.74,15.47409627]
[1734666101263,15.47409627,196.83,196.76,15.47409627]
[1734666101556,15.47409627,196.86,196.79,15.47409627]
[1734666103853,16.42668481,196.85,196.78,15.47409627]
[1734666104230,15.47409627,196.83,196.76,15.47409627]
[1734666104652,15.47409627,196.84,196.77,15.47409627]
[1734666104822,0.95269823,196.83,196.77,15.47409627]
[1734666107636,0.95269823,196.83,196.76,15.47409627]
[1734666108249,16.4267945,196.83,196.76,0.12549]
[1734666108629,15.47409627,196.82,196.75,15.47409627]
[1734666108844,0.95282687,196.81,196.75,15.47409627]
[1734666109032,15.47409627,196.82,196.75,15.47409627]
[1734666109238,15.47409627,196.83,196.76,15.59958627]
[1734666109642,15.47409627,196.84,196.77,15.47409627]
[1734666110242,16.42678607,196.85,196.77,15.47409627]
[1734666111150,15.47409627,196.84,196.77,15.47409627]
[1734666112131,16.42678607,196.85,196.78,15.47409627]
[1734666112334,16.42678607,196.85,196.76,15.59958627]
[1734666112335,15.47409627,196.84,196.76,15.59958627]
[1734666112527,16.42683164,196.83,196.76,15.59958627]
[1734666113652,15.47409627,196.81,196.73,15.47409627]
[1734666113822,16.42698356,196.8,196.73,15.47409627]
[1734666114240,16.42698356,196.8,196.72,15.47409627]
[1734666114241,15.47409627,196.79,196.72,15.47409627]
[1734666114654,0.95292985,196.78,196.72,15.47409627]
[1734666116056,15.47409627,196.8,196.73,15.47409627]
[1734666116353,0.95289231,196.79,196.73,15.47409627]
[1734666116562,8.89,196.85,196.74,15.47409627]
[1734666116563,15.47409627,196.81,196.74,15.47409627]
[1734666116865,15.47409627,196.81,196.7,0.27681042]
[1734666116866,15.47409627,196.82,196.75,15.47409627]
[1734666117027,9.92501123,196.82,196.75,9.92501123]
[1734666118255,0.95277081,196.81,196.75,9.92501123]
[1734666118456,9.92501123,196.8,196.73,9.92501123]
[1734666119754,9.92501123,196.81,196.74,0.12549]
[1734666119961,9.92501123,196.81,196.74,10.05050123]
[1734666120455,23.776884,196.84,196.74,10.05050123]
[1734666120660,9.92501123,196.82,196.75,9.92501123]
[1734666120864,10.87777465,196.83,196.76,9.92501123]
[1734666121060,9.92501123,196.86,196.78,9.92501123]
[1734666121243,9.92501123,196.87,196.8,9.92501123]
[1734666121437,0.9525578,196.86,196.8,9.92501123]
[1734666121642,9.92501123,196.85,196.78,10.05050123]
[1734666121838,9.92501123,196.85,196.81,1.7343771]
[1734666122057,9.92501123,196.83,196.81,1.7343771]
[1734666122364,10.87777568,196.82,196.76,0.12549]
[1734666122779,10.87777568,196.82,196.77,1.73550527]
[1734666123238,10.87777568,196.82,196.78,1.73550527]
[1734666123579,9.92501123,196.81,196.78,1.73550527]
[1734666123745,9.92501123,196.79,196.72,1.5575]
[1734666124058,10.87799208,196.78,196.71,9.92501123]
[1734666124251,10.87799208,196.78,196.73,1.735742]
[1734666124457,9.92501123,196.77,196.73,1.735742]
[1734666124843,3.73493873,196.87,196.67,7.9632]
[1734666124844,10.87802587,196.76,196.67,7.9632]
[1734666125048,9.92501123,196.75,196.74,1.73561352]
[1734666125355,9.92501123,196.75,196.69,0.12549]
[1734666125861,9.92501123,196.75,196.7,1.73434677]
[1734666126363,9.92501123,196.75,196.71,1.73434677]
[1734666126753,9.92501123,196.76,196.72,1.73434677]
[1734666126955,0.9531242,196.75,196.72,1.73434677]
[1734666127168,0.9531242,196.75,196.73,1.73434677]
[1734666127744,0.9531242,196.75,196.69,9.92501123]
[1734666128171,0.9531242,196.75,196.7,1.73324689]
[1734666128745,9.92501123,196.73,196.7,1.73324689]
[1734666128945,10.87826132,196.72,196.71,1.73324689]
[1734666129374,10.87826132,196.72,196.65,9.92501123]
[1734666129880,10.87826132,196.72,196.66,1.73219563]
[1734666130082,9.92501123,196.69,196.66,1.73219563]
[1734666130258,0.95345318,196.68,196.62,16.33311123]
[1734666130584,0.95345318,196.68,196.62,9.92501123]
[1734666130950,0.95345318,196.68,196.63,1.73112935]
[1734666131277,10.87846441,196.68,196.63,1.73112935]
[1734666131460,10.87846441,196.68,196.64,1.73112935]
[1734666131840,10.87846441,196.68,196.62,1.73112935]
[1734666132412,10.87846441,196.68,196.63,1.73112935]
[1734666132584,9.92501123,196.68,196.63,1.73112935]
[1734666132782,10.87850001,196.71,196.65,9.92501123]
[1734666133316,16.47733081,196.71,196.65,15.52384203]
[1734666133470,16.47733081,196.71,196.66,1.72926282]
[1734666133676,15.52384203,196.75,196.68,15.52384203]
[1734666133905,16.47696779,196.74,196.67,15.52384203]
[1734666134106,15.52384203,196.73,196.67,15.52384203]
[1734666134770,16.47702554,196.72,196.65,15.52384203]
[1734666134970,15.52384203,196.7,196.68,1.72803891]
[1734666135394,2.61097118,196.76,196.69,15.52384203]
[1734666135577,16.47721321,196.76,196.7,15.52384203]
[1734666135784,0.95337118,196.76,196.7,15.52384203]
[1734666135982,16.47721321,196.76,196.7,15.52384203]
[1734666136698,0.95305335,196.75,196.7,15.52384203]
[1734666137012,16.47691311,196.76,196.69,15.52384203]
[1734666137291,15.52384203,196.78,196.71,15.52384203]
[1734666137689,15.52384203,196.79,196.72,15.52384203]
[1734666137901,0.95293016,196.78,196.72,15.52384203]
[1734666138401,16.47677219,196.78,196.71,15.52384203]
[1734666138599,15.52384203,196.79,196.72,15.52384203]
[1734666139098,0.9529322,196.78,196.72,15.52384203]
[1734666139494,15.52384203,196.74,196.67,17.18274203]
[1734666139706,0.95319204,196.73,196.68,1.72798832]
[1734666139998,15.52384203,196.74,196.68,1.72798832]
[1734666140389,15.52384203,196.74,196.69,1.72798832]
[1734666140590,15.52384203,196.75,196.69,1.72798832]
[1734666141002,15.52384203,196.75,196.69,15.52384203]
[1734666142002,15.52384203,196.77,196.7,17.25175553]
[1734666142174,0.95303434,196.76,196.7,15.52384203]
[1734666142599,15.52384203,196.76,196.69,15.52384203]
[1734666142802,15.52384203,196.77,196.7,15.52384203]
[1734666143608,0.95303056,196.76,196.71,1.72786638]
[1734666144181,16.47687259,196.76,196.69,15.52384203]
[1734666144588,15.52384203,196.75,196.68,15.64933203]
[1734666144816,16.47695307,196.74,196.68,0.12549]
[1734666145103,15.52384203,196.76,196.69,17.25187616]
[1734666145306,0.95310055,196.75,196.7,15.52384203]
[1734666145502,0.95310055,196.75,196.7,1.72803413]
[1734666145680,16.47694258,196.75,196.7,1.72803413]
[1734666145885,16.47694258,196.75,196.69,1.72803413]
[1734666146187,0.95310055,196.75,196.69,17.25187616]
[1734666146609,0.95310055,196.75,196.7,1.72803413]
[1734666147211,16.47694258,196.75,196.7,1.72803413]
[1734666148005,16.47694258,196.75,196.69,1.72803413]
[1734666150019,15.52384203,196.74,196.69,1.72803413]
[1734666150312,15.52384203,196.75,196.69,1.72803413]
[1734666150518,0.95316278,196.74,196.69,1.72803413]
[1734666150715,0.95316278,196.74,196.69,17.25187616]
[1734666150898,0.95312517,196.75,196.7,1.72803413]
[1734666151600,0.95312517,196.75,196.69,15.52384203]
[1734666152213,16.4769672,196.75,196.68,15.64933203]
[1734666152413,15.52384203,196.74,196.67,17.18274203]
[1734666152611,15.52384203,196.7,196.69,1.72918412]
[1734666152993,15.52384203,196.71,196.69,1.72918412]
[1734666153195,0.95338969,196.7,196.64,15.52384203]
[1734666153926,16.47723172,196.7,196.65,1.72947412]
[1734666154602,16.47723172,196.7,196.63,15.52384203]
[1734666155110,0.95338969,196.7,196.64,11.66638091]
[1734666155520,10.89031619,196.7,196.65,1.72945441]
[1734666155709,9.9369265,196.68,196.65,1.72945441]
[1734666155902,9.9369265,196.69,196.65,1.72945441]
[1734666156418,9.9369265,196.69,196.62,10.0624165]
[1734666156625,9.9369265,196.67,196.6,11.5476265]
[1734666156796,10.89054343,196.66,196.6,1.6107]
[1734666156996,10.89054343,196.66,196.61,1.72961917]
[1734666157430,9.9369265,196.65,196.61,1.72961917]
[1734666157602,0.95363766,196.64,196.62,1.72961917]
[1734666159199,9.9369265,196.6,196.57,0.6230473]
[1734666159398,9.9369265,196.58,196.57,0.6230473]
[1734666160235,33.7138105,196.58,196.57,0.6230473]
[1734666161123,39.32654416,196.58,196.57,0.6230473]
[1734666162123,39.32654416,196.58,196.44,15.54966016]
[1734666162124,20.0,196.54,196.41,0.12549]
[1734666162427,15.54966016,196.51,196.45,15.54966016]
[1734666162626,0.95431795,196.53,196.48,15.54966016]
[1734666162936,0.95420128,196.57,196.52,15.54966016]
[1734666163434,0.95420128,196.57,196.51,15.54966016]
[1734666163610,16.50386144,196.57,196.5,15.54966016]
[1734666163812,16.50386144,196.57,196.48,1.6152]
[1734666164124,16.50386144,196.57,196.5,15.54966016]
[1734666164328,10.9159061,196.62,196.52,15.54966016]
[1734666164329,15.54966016,196.58,196.52,15.54966016]
[1734666164627,0.95397896,196.57,196.51,15.54966016]
[1734666164828,15.54966016,196.58,196.51,15.54966016]
[1734666165029,0.95394692,196.57,196.51,15.54966016]
[1734666165623,15.54966016,196.58,196.51,15.54966016]
[1734666165943,15.54966016,196.59,196.52,15.54966016]
[1734666166139,0.9539271,196.58,196.52,15.54966016]
[1734666166340,0.9539271,196.58,196.53,15.54966016]
[1734666166543,15.54966016,196.6,196.53,15.54966016]
[1734666166705,0.95388428,196.59,196.53,15.54966016]
[1734666166916,0.95388559,196.59,196.54,15.54966016]
[1734666167807,0.95387149,196.6,196.54,15.54966016]
[1734666168236,15.54966016,196.58,196.52,15.54966016]
[1734666168405,0.95398891,196.57,196.52,15.54966016]
[1734666169029,0.95398891,196.57,196.49,0.12549]
[1734666169030,16.50364907,196.57,196.5,35.54966016]
[1734666169212,16.50364907,196.57,196.5,15.54966016]
[1734666169604,0.95398891,196.57,196.51,15.54966016]
[1734666170109,16.50364907,196.57,196.51,15.54966016]
[1734666171433,16.50364907,196.57,196.5,15.54966016]
[1734666172634,16.50364907,196.57,196.51,15.54966016]
[1734666172811,0.95398891,196.57,196.51,15.54966016]
[1734666174309,16.50364907,196.57,196.5,15.54966016]
[1734666174505,15.54966016,196.55,196.48,1.6152]
[1734666174711,0.95414679,196.54,196.49,15.54966016]
[1734666175342,15.54966016,196.53,196.44,0.27900644]
[1734666175635,0.95423671,196.52,196.47,15.54966016]
[1734666175932,15.54966016,196.53,196.47,15.54966016]
[1734666176238,0.95419008,196.52,196.47,15.54966016]
[1734666176414,15.54966016,196.53,196.47,15.54966016]
[1734666176614,15.54966016,196.54,196.47,15.54966016]
[1734666176815,0.95419206,196.53,196.47,15.54966016]
[1734666177234,16.50385222,196.53,196.47,15.54966016]
[1734666178829,0.95419206,196.53,196.47,15.54966016]
[1734666179035,0.95420107,196.59,196.51,15.54966016]
[1734666179333,15.54966016,196.59,196.53,15.54966016]
[1734666179520,0.95396466,196.58,196.52,15.54966016]
[1734666180233,15.54966016,196.57,196.5,15.54966016]
[1734666180534,0.95407994,196.56,196.5,15.54966016]
[1734666181035,16.5037401,196.56,196.49,15.54966016]
[1734666181209,0.95407994,196.56,196.5,15.54966016]
[1734666181631,2.52457479,196.63,196.52,15.54966016]
[1734666181839,15.54966016,196.59,196.52,15.54966016]
[1734666182041,15.54966016,196.6,196.53,15.54966016]
[1734666182341,0.95386912,196.59,196.53,15.54966016]
[1734666182832,0.95386912,196.59,196.5,1.5034]
[1734666182833,0.95386912,196.59,196.54,15.54966016]
[1734666183138,16.50352928,196.59,196.52,15.54966016]
[1734666183340,15.54966016,196.58,196.51,15.54966016]
[1734666183541,0.95400718,196.57,196.52,15.54966016]
[1734666183715,0.95396095,196.58,196.52,15.54966016]
[1734666184924,15.54966016,196.57,196.51,15.54966016]
[1734666185129,15.54966016,196.58,196.51,15.54966016]
[1734666185316,0.95396083,196.57,196.52,15.54966016]
[1734666186433,16.50363651,196.58,196.51,15.54966016]
[1734666186940,0.95397635,196.58,196.52,15.54966016]
[1734666187136,0.95397635,196.58,196.5,1.5034]
[1734666187341,15.54966016,196.6,196.53,15.54966016]
[1734666187542,0.95386066,196.59,196.53,15.54966016]
[1734666189345,16.50352082,196.59,196.52,15.54966016]
[1734666189923,15.54966016,196.58,196.51,15.54966016]
[1734666190123,0.95401896,196.57,196.51,15.54966016]
[1734666190623,16.50367912,196.57,196.5,17.05306016]
[1734666190941,10.90416283,196.57,196.5,11.45354387]
[1734666192348,0.95401896,196.57,196.51,9.95014387]
[1734666192519,0.95401896,196.57,196.5,1.5034]
[1734666192520,0.95396931,196.6,196.52,9.95014387]
[1734666192715,9.95014387,196.59,196.52,9.95014387]
[1734666193024,0.95390059,196.58,196.52,9.95014387]
[1734666193643,9.95014387,196.59,196.52,9.95014387]
[1734666193947,9.95014387,196.59,196.5,1.5034]
[1734666193948,10.90405282,196.62,196.56,9.95014387]
[1734666194141,10.90405282,196.62,196.55,9.95014387]
[1734666194316,9.95014387,196.61,196.54,9.95014387]
[1734666194522,0.95382916,196.6,196.54,9.95014387]
[1734666195023,9.95014387,196.61,196.54,9.95014387]
[1734666195223,9.95014387,196.62,196.56,9.95014387]
[1734666195523,9.95014387,196.63,196.56,9.95014387]
[1734666195718,9.95014387,196.63,196.53,0.12549]
[1734666195917,10.90384826,196.62,196.55,9.95014387]
[1734666196644,0.95370439,196.62,196.56,9.95014387]
[1734666198254,0.95370439,196.62,196.57,9.95014387]
[1734666198544,10.90381384,196.66,196.59,9.95014387]
[1734666198750,9.95014387,196.65,196.58,11.68096899]
[1734666198933,10.90385436,196.64,196.58,1.73082512]
[1734666199124,9.95014387,196.63,196.58,1.73082512]
[1734666199328,0.95379988,196.62,196.59,1.73082512]
[1734666199751,0.95379988,196.62,196.56,9.95014387]
[1734666200334,10.90394375,196.62,196.57,1.73193326]
[1734666201054,10.90394375,196.62,196.55,9.95014387]
[1734666201229,9.95014387,196.64,196.57,9.95014387]
[1734666201431,0.95375235,196.63,196.57,9.95014387]
[1734666201640,9.95014387,196.65,196.57,9.95014387]
[1734666201957,10.90377995,196.67,196.6,9.95014387]
[1734666202255,0.95363608,196.67,196.61,11.68414245]
[1734666202627,10.90377995,196.67,196.61,1.73399858]
[1734666202838,10.90377995,196.67,196.62,1.73399858]
[1734666203130,0.95363608,196.67,196.62,1.73399858]
[1734666203634,10.90377995,196.67,196.62,1.73399858]
[1734666203844,9.95014387,196.68,196.62,1.73399858]
[1734666204033,9.95014387,196.69,196.62,1.73399858]
[1734666204232,0.95343563,196.68,196.62,1.73399858]
[1734666205339,0.95343563,196.68,196.62,11.68414245]
[1734666206240,0.95343563,196.68,196.63,1.73399858]
[1734666206755,0.95343563,196.68,196.62,9.95014387]
[1734666207555,0.95343563,196.68,196.63,1.73169508]
[1734666207740,9.95014387,196.69,196.63,1.73169508]
[1734666208054,0.95341922,196.68,196.64,1.73169508]
[1734666208354,10.90357089,196.73,196.66,9.95014387]
[1734666208553,0.95342702,196.73,196.67,9.95014387]
[1734666208952,10.90357089,196.73,196.66,9.95014387]
[1734666209155,9.95014387,196.72,196.65,9.95014387]
[1734666209342,10.90347238,196.71,196.64,9.95014387]
[1734666210335,10.90347238,196.71,196.65,1.72979125]
[1734666210886,10.90347238,196.71,196.64,9.95014387]
[1734666211036,0.95332851,196.71,196.65,9.95014387]
[1734666211230,0.95332851,196.71,196.66,9.95014387]
[1734666211431,0.95336506,196.7,196.66,9.95014387]
[1734666211656,0.95336609,196.72,196.66,9.95014387]
[1734666214468,9.95014387,196.71,196.65,9.95014387]
[1734666214635,0.95336855,196.7,196.65,9.95014387]
[1734666214960,10.90351242,196.7,196.6,20.12549]
[1734666215253,10.90351242,196.7,196.58,1.5107]
[1734666215254,9.95014387,196.69,196.63,9.95014387]
[1734666215459,0.95349334,196.68,196.63,9.95014387]
[1734666216361,10.90360174,196.69,196.63,9.95014387]
[1734666216743,0.95345787,196.69,196.64,9.95014387]
[1734666218760,0.95344954,196.68,196.64,9.95014387]
[1734666218965,0.95344979,196.7,196.64,9.95014387]
[1734666221253,0.95344979,196.7,196.66,9.95014387]
[1734666221461,0.95334888,196.72,196.66,9.95014387]
[1734666222562,0.95334888,196.72,196.69,9.95014387]
[1734666222737,9.95014387,196.75,196.69,9.95014387]
[1734666222941,0.95322268,196.74,196.69,9.95014387]
[1734666224469,9.95014387,196.75,196.62,0.27745473]
[1734666224470,0.95315383,196.78,196.73,9.95014387]
[1734666224649,0.95297319,196.83,196.75,9.95014387]
[1734666224849,9.95014387,196.82,196.76,9.95014387]
[1734666225078,0.95290444,196.81,196.76,9.95014387]
[1734666225247,0.95290444,196.81,196.75,9.95014387]
[1734666225572,9.95014387,196.79,196.73,9.95014387]
[1734666225775,0.95300459,196.78,196.73,9.95014387]
[1734666226873,0.9529995,196.77,196.73,9.95014387]
[1734666227375,0.9529995,196.77,196.72,9.95014387]
[1734666227584,10.90314337,196.77,196.71,1.5891]
[1734666227772,10.90314337,196.77,196.7,9.95014387]
[1734666228073,0.95301698,196.78,196.73,9.95014387]
[1734666228465,0.95301698,196.78,196.72,9.95014387]
[1734666229956,9.95014387,196.77,196.66,20.0]
[1734666230290,10.90328393,196.76,196.69,9.95014387]
[1734666230773,9.95014387,196.75,196.68,9.95014387]
[1734666230978,0.95319909,196.74,196.68,9.95014387]
[1734666232678,0.95319909,196.74,196.69,9.95014387]
[1734666232863,10.90333759,196.75,196.68,9.95014387]
[1734666234376,9.95014387,196.73,196.67,9.95014387]
[1734666234567,0.95329949,196.72,196.66,9.95014387]
[1734666235281,9.95014387,196.73,196.66,9.95014387]
[1734666235479,0.95328791,196.72,196.66,9.95014387]
[1734666238783,9.95014387,196.71,196.6,1.5553]
[1734666239079,10.90359381,196.7,196.63,9.95014387]
[1734666239279,9.95014387,196.67,196.6,1.5553]
[1734666239460,0.95357517,196.66,196.6,11.50544387]
[1734666239663,9.95014387,196.68,196.61,9.95014387]
[1734666240178,0.95345814,196.67,196.61,9.95014387]
[1734666240377,0.95345814,196.67,196.62,1.72640579]
[1734666240581,9.95014387,196.69,196.62,11.67654966]
[1734666240782,0.95346048,196.68,196.62,9.95014387]
[1734666241077,0.95345712,196.69,196.63,9.95014387]
[1734666242087,9.95014387,196.67,196.64,1.72717832]
[1734666242401,9.95014387,196.65,196.64,1.72717832]
[1734666242696,9.95014387,196.65,196.54,9.95014387]
[1734666242697,20.0,196.62,196.54,9.95014387]
[1734666242864,10.90400862,196.61,196.54,9.95014387]
[1734666243199,10.90400862,196.61,196.55,1.72906016]
[1734666243200,9.95014387,196.59,196.55,1.72906016]
[1734666243480,20.0,196.62,196.42,0.27890493]
[1734666243481,9.95014387,196.56,196.42,0.27890493]
[1734666243675,0.9540477,196.55,196.49,9.95014387]
[1734666243875,9.95014387,196.54,196.48,9.95014387]
[1734666244088,0.95416649,196.53,196.5,1.7279629]
[1734666244463,0.95415515,196.54,196.48,9.95014387]
[1734666244873,0.95415515,196.54,196.49,9.95014387]
[1734666245063,20.95415515,196.54,196.49,15.54889128]
[1734666245891,20.95415515,196.54,196.48,15.54889128]
[1734666246700,0.95415515,196.54,196.49,15.54889128]
[1734666247595,0.95415515,196.54,196.5,0.12549]
[1734666247886,15.54889128,196.62,196.53,15.54889128]
[1734666248095,15.54889128,196.6,196.53,15.54889128]
[1734666248289,0.95391498,196.59,196.53,15.54889128]
[1734666249482,16.50280626,196.59,196.52,15.54889128]
[1734666249693,16.50280626,196.59,196.51,15.54889128]
[1734666250999,16.50280626,196.59,196.52,15.54889128]
[1734666251587,16.50280626,196.59,196.51,15.54889128]
[1734666252277,15.54889128,196.58,196.51,15.54889128]
[1734666252590,16.50290133,196.57,196.5,15.54889128]
[1734666252778,15.54889128,196.55,196.47,15.54889128]
[1734666253085,15.54889128,196.55,196.43,8.19256468]
[1734666253086,15.54889128,196.53,196.46,15.54889128]
[1734666253288,0.95424722,196.52,196.46,15.54889128]
[1734666255100,0.95424722,196.52,196.43,7.9133]
[1734666255398,15.54889128,196.5,196.43,23.46219128]
[1734666255570,0.95440587,196.49,196.43,17.08269128]
[1734666255772,15.54889128,196.46,196.38,6.1189]
[1734666255985,0.95455223,196.45,196.39,15.54889128]
[1734666256194,0.95455223,196.45,196.37,23.07514401]
[1734666256501,0.95455223,196.45,196.39,15.54889128]
[1734666256706,15.54889128,196.46,196.39,15.54889128]
[1734666256867,0.9547065,196.45,196.39,15.54889128]
[1734666257066,0.95469062,196.46,196.42,15.54889128]
[1734666257286,0.95448771,196.48,196.43,15.54889128]
[1734666257478,20.0,196.47,196.43,15.54889128]
[1734666257686,0.95448373,196.46,196.42,15.54889128]
[1734666258897,20.95448969,196.47,196.41,15.54889128]
[1734666259092,20.95448969,196.47,196.42,15.54889128]
[1734666259474,20.95448969,196.47,196.41,15.54889128]
[1734666259972,0.95449716,196.46,196.41,15.54889128]
[1734666260899,15.54889128,196.48,196.41,15.54889128]
[1734666260900,0.9545787,196.45,196.41,15.54889128]
[1734666261101,0.9545692,196.47,196.4,15.54889128]
[1734666261400,0.9545692,196.47,196.41,15.54889128]
[1734666262712,0.95446643,196.51,196.44,0.12549]
[1734666262885,0.95427564,196.53,196.47,15.54889128]
[1734666263191,15.54889128,196.55,196.48,15.54889128]
[1734666263422,16.50306735,196.54,196.47,15.54889128]
[1734666264093,16.50306735,196.54,196.46,15.54889128]
[1734666264299,15.54889128,196.52,196.44,15.54889128]
[1734666264504,0.95435471,196.51,196.45,15.54889128]
[1734666265905,0.95435471,196.51,196.46,15.54889128]
[1734666266096,0.95426885,196.52,196.46,15.54889128]
[1734666266295,0.95426885,196.52,196.45,15.54889128]
[1734666267684,16.50316013,196.52,196.45,15.54889128]
[1734666267884,15.54889128,196.51,196.44,15.54889128]
[1734666268286,0.95431274,196.5,196.44,15.54889128]
[1734666268603,0.95431274,196.5,196.45,15.54889128]
[1734666268804,0.95429703,196.51,196.45,15.54889128]
[1734666269181,0.95429703,196.51,196.44,15.54889128]
[1734666269504,15.54889128,196.49,196.42,21.69369128]
[1734666269709,0.95441178,196.48,196.42,21.69369128]
[1734666270204,15.54889128,196.47,196.41,1.5942]
[1734666270499,16.50342049,196.46,196.39,15.54889128]
[1734666271004,16.50342049,196.46,196.4,15.54889128]
[1734666271303,16.50342049,196.46,196.39,15.54889128]
[1734666272187,16.50342049,196.46,196.37,2.2413473]
[1734666272495,15.54889128,196.45,196.38,15.54889128]
[1734666272680,15.54889128,196.46,196.39,15.54889128]
[1734666272884,15.54889128,196.47,196.4,15.54889128]
[1734666273100,0.95453479,196.46,196.4,15.54889128]
[1734666273711,16.50342607,196.46,196.39,15.54889128]
[1734666274605,16.50342607,196.46,196.37,2.2413473]
[1734666274987,16.50342607,196.46,196.39,15.54889128]
[1734666275686,16.50342607,196.46,196.37,2.2413473]
[1734666275687,15.54889128,196.48,196.41,15.54889128]
[1734666275889,15.54889128,196.52,196.44,15.54889128]
[1734666276088,0.95423806,196.51,196.45,15.54889128]
[1734666276691,15.54889128,196.53,196.46,15.54889128]
[1734666277703,2.54176463,196.57,196.45,1.6581]
[1734666277704,15.54889128,196.54,196.47,15.54889128]
[1734666277905,15.54889128,196.52,196.41,0.27936074]
[1734666278113,15.54889128,196.52,196.45,15.54889128]
[1734666278298,0.95416104,196.53,196.46,15.54889128]
[1734666278299,16.50305232,196.53,196.46,15.54889128]
[1734666281012,10.90906234,196.53,196.46,9.9549013]
[1734666281192,9.9549013,196.53,196.46,9.9549013]
[1734666282117,10.90904074,196.52,196.45,9.9549013]
[1734666282620,0.95413944,196.52,196.46,9.9549013]
[1734666284018,10.90904074,196.52,196.45,9.9549013]
[1734666284321,10.90904074,196.52,196.46,1.72034069]
[1734666285000,0.95413944,196.52,196.46,9.9549013]
[1734666285198,0.95420464,196.52,196.46,9.9549013]
[1734666285716,0.95420464,196.52,196.47,1.72153364]
[1734666286123,0.95420464,196.52,196.46,9.9549013]
[1734666287324,20.0,196.55,196.5,9.9549013]
[1734666287710,20.0,196.55,196.49,9.9549013]
[1734666288222,20.0,196.55,196.5,1.72548159]
[1734666288622,10.90899624,196.56,196.5,1.72548159]
[1734666288825,10.90899624,196.56,196.49,9.9549013]
[1734666289825,10.90899624,196.56,196.5,1.72594746]
[1734666290427,20.0,196.6,196.52,9.9549013]
[1734666290630,10.90884997,196.59,196.52,9.9549013]
[1734666291129,10.90884997,196.59,196.53,1.72594746]
[1734666291607,10.90884997,196.59,196.54,1.72594746]
[1734666291925,10.90884997,196.59,196.52,9.9549013]
[1734666292128,9.9549013,196.58,196.51,9.9549013]
[1734666292428,9.9549013,196.58,196.48,1.78592202]
[1734666292429,0.95397646,196.57,196.52,1.72556096]
[1734666293129,0.95397646,196.57,196.53,1.72556096]
[1734666293716,0.95397646,196.57,196.48,1.507]
[1734666293919,0.95397646,196.57,196.51,9.9549013]
[1734666294332,0.95397646,196.57,196.52,1.72546802]
[1734666295030,0.95397646,196.57,196.51,9.9549013]
[1734666295626,0.95397646,196.57,196.52,1.72568699]
[1734666296231,0.95397646,196.57,196.51,9.9549013]
[1734666297041,9.9549013,196.58,196.52,1.72566267]
[1734666297742,0.95395526,196.57,196.51,9.9549013]
[1734666298410,0.95397007,196.62,196.54,9.9549013]
[1734666298616,10.90887137,196.62,196.55,9.9549013]
[1734666299115,10.847607,196.62,196.55,9.9549013]
[1734666299319,9.9549013,196.65,196.58,9.9549013]
[1734666299520,0.95368413,196.64,196.58,9.9549013]
[1734666299913,10.90858543,196.64,196.57,9.9549013]
[1734666300115,0.95368413,196.64,196.58,9.9549013]
[1734666300515,9.9549013,196.63,196.56,9.9549013]
[1734666300723,0.95375479,196.62,196.57,9.9549013]
[1734666301711,0.95372777,196.63,196.58,9.9549013]
[1734666301911,9.9549013,196.65,196.6,9.9549013]
[1734666301912,0.95368443,196.65,196.6,9.9549013]
[1734666302127,0.95356527,196.67,196.62,9.9549013]
[1734666302331,9.9549013,196.69,196.63,9.9549013]
[1734666302532,0.95343149,196.68,196.63,9.9549013]
[1734666302820,0.95343149,196.68,196.62,9.9549013]
[1734666303344,9.9549013,196.67,196.6,9.9549013]
[1734666303517,0.95359336,196.66,196.6,9.9549013]
[1734666304528,29.9549013,196.68,196.57,0.12549]
[1734666304728,0.95351426,196.67,196.61,9.9549013]
[1734666305143,0.95351426,196.67,196.6,9.9549013]
[1734666305144,10.90841556,196.67,196.6,9.9549013]
[1734666305439,9.9549013,196.61,196.56,1.6322]
[1734666305624,10.90864711,196.6,196.51,1.5527]
[1734666305828,10.90864711,196.6,196.53,9.9549013]
[1734666306026,9.9549013,196.62,196.55,9.9549013]
[1734666306354,0.95379208,196.65,196.59,9.9549013]
[1734666306527,9.9549013,196.67,196.61,9.9549013]
[1734666306859,9.9549013,196.68,196.61,9.9549013]
[1734666307058,9.9549013,196.69,196.62,9.9549013]
[1734666307219,0.95344368,196.68,196.62,9.9549013]
[1734666307730,0.95344368,196.68,196.63,9.9549013]
[1734666308948,0.95344368,196.68,196.62,9.9549013]
[1734666309158,9.9549013,196.67,196.6,9.9549013]
[1734666309360,0.95356973,196.66,196.6,9.9549013]
[1734666310263,10.90847103,196.66,196.59,11.4681013]
[1734666310727,10.90847103,196.66,196.6,9.9549013]
[1734666310916,10.90847103,196.66,196.55,20.0]
[1734666311136,10.90847103,196.66,196.59,9.9549013]
[1734666311645,10.90847103,196.66,196.6,9.9549013]
[1734666313433,9.9549013,196.63,196.56,9.9549013]
[1734666313750,10.9086912,196.62,196.55,9.9549013]
[1734666313950,9.9549013,196.61,196.54,9.9549013]
[1734666314261,0.95388307,196.6,196.54,9.9549013]
[1734666315155,0.95388307,196.6,196.52,8.0563]
[1734666315156,9.9549013,196.59,196.52,11.4631013]
[1734666315462,0.95403018,196.58,196.52,9.9549013]
[1734666316159,0.95403018,196.58,196.53,9.9549013]
[1734666316365,30.90886219,196.59,196.53,9.9549013]